[Event "*** Titled Tuesday Blitz"]
[Site "Chess.com"]
[Date "2020.04.28"]
[Round "5"]
[White "r31415"]
[Black "WoolworthsManly"]
[Result "0-1"]
[WhiteElo "2355"]
[BlackElo "2660"]
[TimeControl "180+1"]
[EndTime "10:56:14 PDT"]
[Termination "WoolworthsManly won by resignation"]

1. e4 {[%clk 0:03:00.9]} 1... e5 {[%clk 0:02:59.9]} 2. Nf3 {[%clk 0:03:00.9]}
2... Nc6 {[%clk 0:03:00]} 3. Bc4 {[%clk 0:03:01.5]} 3... Bc5 {[%clk 0:02:59.5]}
4. c3 {[%clk 0:03:01.7]} 4... Nf6 {[%clk 0:02:59.9]} 5. d3 {[%clk 0:03:02.3]}
5... d6 {[%clk 0:03:00.1]} 6. O-O {[%clk 0:03:02.8]} 6... a6 {[%clk 0:03:00.5]}
7. Bb3 {[%clk 0:03:03.3]} 7... Ba7 {[%clk 0:03:00.5]} 8. Nbd2 {[%clk 0:03:03.8]}
8... O-O {[%clk 0:02:59.3]} 9. h3 {[%clk 0:03:03.3]} 9... h6 {[%clk 0:02:49.4]}
10. Re1 {[%clk 0:03:03.2]} 10... Nh5 {[%clk 0:02:49.6]} 11. Nf1 {[%clk
0:03:00.6]} 11... Qf6 {[%clk 0:02:49.7]} 12. Be3 {[%clk 0:02:45.8]} 12... Nf4
{[%clk 0:02:45.7]} 13. Ng3 {[%clk 0:02:37.8]} 13... Be6 {[%clk 0:02:42.5]} 14.
Bc2 {[%clk 0:02:24.7]} 14... Ne7 {[%clk 0:02:27.9]} 15. d4 {[%clk 0:02:23.4]}
15... Neg6 {[%clk 0:02:26.1]} 16. Nf5 {[%clk 0:02:08.8]} 16... Rfe8 {[%clk
0:02:13.3]} 17. Nh2 {[%clk 0:02:05.8]} 17... Qg5 {[%clk 0:01:58]} 18. Qg4 {[%clk
0:01:35.6]} 18... Bxf5 {[%clk 0:01:52.7]} 19. exf5 {[%clk 0:01:24.5]} 19... Nf8
{[%clk 0:01:38.4]} 20. Nf3 {[%clk 0:01:13.4]} 20... Qxg4 {[%clk 0:01:36.5]} 21.
hxg4 {[%clk 0:01:14.3]} 21... Nd5 {[%clk 0:01:34.8]} 22. Bd2 {[%clk 0:01:12.2]}
22... Nf6 {[%clk 0:01:31.3]} 23. g5 {[%clk 0:01:08.7]} 23... hxg5 {[%clk
0:01:31.4]} 24. Bxg5 {[%clk 0:01:08.1]} 24... exd4 {[%clk 0:01:28.4]} 25. Nxd4
{[%clk 0:01:00.4]} 25... Bxd4 {[%clk 0:01:27.4]} 26. cxd4 {[%clk 0:01:00.2]}
26... d5 {[%clk 0:01:27.9]} 27. Kf1 {[%clk 0:00:46.5]} 27... N8d7 {[%clk
0:01:25.8]} 28. Bf4 {[%clk 0:00:45.6]} 28... c6 {[%clk 0:01:24.9]} 29. Rxe8+
{[%clk 0:00:41.8]} 29... Rxe8 {[%clk 0:01:24.2]} 30. Re1 {[%clk 0:00:42.3]}
30... Rxe1+ {[%clk 0:01:24]} 31. Kxe1 {[%clk 0:00:42.5]} 31... Ne8 {[%clk
0:01:21.5]} 32. Ke2 {[%clk 0:00:41.6]} 32... f6 {[%clk 0:01:21.7]} 33. g4 {[%clk
0:00:31.2]} 33... Kf7 {[%clk 0:01:22]} 34. Bg3 {[%clk 0:00:28.5]} 34... Ke7
{[%clk 0:01:21.4]} 35. Bd1 {[%clk 0:00:25.2]} 35... Nd6 {[%clk 0:01:21.5]} 36.
Bc2 {[%clk 0:00:23.9]} 36... a5 {[%clk 0:01:18.5]} 37. Kd3 {[%clk 0:00:20.9]}
37... b5 {[%clk 0:01:18.1]} 38. b3 {[%clk 0:00:15.2]} 38... Ne4 {[%clk
0:01:12.6]} 39. Bh4 {[%clk 0:00:14.1]} 39... Nb8 {[%clk 0:01:09]} 40. f3 {[%clk
0:00:14.3]} 40... Nd6 {[%clk 0:01:08.7]} 41. Be1 {[%clk 0:00:13]} 41... Nb7
{[%clk 0:01:07.1]} 42. Bg3 {[%clk 0:00:12.2]} 42... Na6 {[%clk 0:01:07.1]} 43.
a3 {[%clk 0:00:11.5]} 43... Nd6 {[%clk 0:01:02.8]} 44. Ke3 {[%clk 0:00:10.4]}
44... a4 {[%clk 0:01:01.7]} 45. Be1 {[%clk 0:00:06.9]} 45... axb3 {[%clk
0:00:59.2]} 46. Bxb3 {[%clk 0:00:07.8]} 46... Nc4+ {[%clk 0:00:57]} 47. Bxc4
{[%clk 0:00:08.1]} 47... dxc4 {[%clk 0:00:53.8]} 48. f4 {[%clk 0:00:06.9]} 48...
Nc7 {[%clk 0:00:51.1]} 49. Bb4+ {[%clk 0:00:04.3]} 49... Ke8 {[%clk 0:00:51.1]}
50. Ke4 {[%clk 0:00:03.4]} 50... Nd5 {[%clk 0:00:51.3]} 51. Ba5 {[%clk
0:00:03.6]} 51... Kd7 {[%clk 0:00:50.1]} 52. g5 {[%clk 0:00:03.9]} 52... Ke7
{[%clk 0:00:49.6]} 53. Be1 {[%clk 0:00:04.2]} 53... Kd6 {[%clk 0:00:48.4]} 54.
Bh4 {[%clk 0:00:04]} 54... c5 {[%clk 0:00:46.7]} 55. dxc5+ {[%clk 0:00:03.2]}
55... Kxc5 {[%clk 0:00:47.2]} 56. Bf2+ {[%clk 0:00:03.2]} 56... Kc6 {[%clk
0:00:45.4]} 57. Bh4 {[%clk 0:00:03.2]} 57... Kd6 {[%clk 0:00:39.5]} 58. Bf2
{[%clk 0:00:02.6]} 58... c3 {[%clk 0:00:39.6]} 59. Bg3 {[%clk 0:00:01.7]} 59...
c2 {[%clk 0:00:38.9]} 0-1

[Event "*** Titled Tuesday Blitz"]
[Site "Chess.com"]
[Date "2020.04.28"]
[Round "5"]
[White "enriquetejedor"]
[Black "Filip_Covic"]
[Result "1-0"]
[WhiteElo "2522"]
[BlackElo "2331"]
[TimeControl "180+1"]
[EndTime "10:56:14 PDT"]
[Termination "enriquetejedor won by resignation"]

1. e4 {[%clk 0:02:50.1]} 1... c5 {[%clk 0:02:58.8]} 2. Nf3 {[%clk 0:02:43.9]}
2... Nc6 {[%clk 0:02:59.1]} 3. Bb5 {[%clk 0:02:39.4]} 3... g6 {[%clk 0:02:58]}
4. Bxc6 {[%clk 0:02:35.4]} 4... dxc6 {[%clk 0:02:57.2]} 5. d3 {[%clk 0:02:34.1]}
5... Bg7 {[%clk 0:02:54.4]} 6. O-O {[%clk 0:02:31.2]} 6... Nf6 {[%clk 0:02:54]}
7. h3 {[%clk 0:02:26.2]} 7... Nd7 {[%clk 0:02:53.2]} 8. Nc3 {[%clk 0:02:20.8]}
8... e5 {[%clk 0:02:48.6]} 9. a3 {[%clk 0:02:11.1]} 9... Nf8 {[%clk 0:02:43.8]}
10. b4 {[%clk 0:02:04.4]} 10... Ne6 {[%clk 0:02:41]} 11. Be3 {[%clk 0:01:53.5]}
11... h6 {[%clk 0:02:38.3]} 12. Qd2 {[%clk 0:01:36.7]} 12... f5 {[%clk 0:02:37]}
13. exf5 {[%clk 0:01:33.5]} 13... gxf5 {[%clk 0:02:36.1]} 14. Bxc5 {[%clk
0:01:33.2]} 14... Nxc5 {[%clk 0:02:19.6]} 15. bxc5 {[%clk 0:01:31.3]} 15... O-O
{[%clk 0:02:20.5]} 16. Rad1 {[%clk 0:01:24.4]} 16... Qf6 {[%clk 0:02:19.3]} 17.
d4 {[%clk 0:01:16.4]} 17... e4 {[%clk 0:02:18.4]} 18. Ne5 {[%clk 0:01:15.6]}
18... Be6 {[%clk 0:02:17.5]} 19. Rb1 {[%clk 0:01:14.6]} 19... Rad8 {[%clk
0:02:15.8]} 20. Rfd1 {[%clk 0:01:07.9]} 20... Qe7 {[%clk 0:01:59.1]} 21. Qf4
{[%clk 0:01:04.6]} 21... Kh7 {[%clk 0:01:51.3]} 22. f3 {[%clk 0:00:52.9]} 22...
Bf6 {[%clk 0:01:27.8]} 23. fxe4 {[%clk 0:00:45.4]} 23... Bg5 {[%clk 0:01:24]}
24. Qf3 {[%clk 0:00:34.6]} 24... fxe4 {[%clk 0:01:11.7]} 25. Qxe4+ {[%clk
0:00:33.4]} 25... Bf5 {[%clk 0:01:12]} 26. Qe2 {[%clk 0:00:27.8]} 26... Rfe8
{[%clk 0:01:01]} 27. Ne4 {[%clk 0:00:22.9]} 27... Rxd4 {[%clk 0:00:44.6]} 28.
Rxd4 {[%clk 0:00:19.1]} 28... Qxe5 {[%clk 0:00:34.8]} 29. Nxg5+ {[%clk
0:00:17.1]} 29... hxg5 {[%clk 0:00:34.6]} 30. Qxe5 {[%clk 0:00:16.6]} 30... Rxe5
{[%clk 0:00:33.8]} 31. Rxb7+ {[%clk 0:00:14.7]} 31... Kg6 {[%clk 0:00:28.5]} 32.
Rd6+ {[%clk 0:00:14.4]} 32... Be6 {[%clk 0:00:29]} 33. Re7 {[%clk 0:00:12.1]}
33... Kf6 {[%clk 0:00:28.5]} 34. Rexe6+ {[%clk 0:00:07.5]} 34... Rxe6 {[%clk
0:00:28.1]} 35. Rxe6+ {[%clk 0:00:08.4]} 35... Kxe6 {[%clk 0:00:28.6]} 36. Kf2
{[%clk 0:00:09]} 36... Kd5 {[%clk 0:00:28.9]} 37. Kg3 {[%clk 0:00:08.6]} 37...
Kxc5 {[%clk 0:00:29.4]} 38. Kg4 {[%clk 0:00:08.8]} 38... Kc4 {[%clk 0:00:19.4]}
39. Kxg5 {[%clk 0:00:09.7]} 39... Kc3 {[%clk 0:00:20]} 40. h4 {[%clk 0:00:10.5]}
40... Kxc2 {[%clk 0:00:20.9]} 41. h5 {[%clk 0:00:11.1]} 41... c5 {[%clk
0:00:21.7]} 42. h6 {[%clk 0:00:12]} 42... c4 {[%clk 0:00:22.6]} 43. h7 {[%clk
0:00:12.9]} 43... c3 {[%clk 0:00:23.3]} 44. h8=Q {[%clk 0:00:13.8]} 44... Kb2
{[%clk 0:00:23.8]} 45. Qc8 {[%clk 0:00:14.5]} 45... c2 {[%clk 0:00:23.9]} 46.
Kf4 {[%clk 0:00:15.1]} 46... c1=Q+ {[%clk 0:00:23.9]} 47. Qxc1+ {[%clk
0:00:14.8]} 47... Kxc1 {[%clk 0:00:24.6]} 48. g4 {[%clk 0:00:15.7]} 48... Kb2
{[%clk 0:00:25.3]} 49. g5 {[%clk 0:00:16.6]} 49... Kxa3 {[%clk 0:00:26]} 50. g6
{[%clk 0:00:17.5]} 50... a5 {[%clk 0:00:26.7]} 51. g7 {[%clk 0:00:18.4]} 51...
a4 {[%clk 0:00:27.6]} 52. Ke3 {[%clk 0:00:19.3]} 52... Kb2 {[%clk 0:00:27.7]}
53. g8=Q {[%clk 0:00:20.2]} 53... a3 {[%clk 0:00:28.6]} 54. Kd2 {[%clk
0:00:20.4]} 54... a2 {[%clk 0:00:28.6]} 55. Qb8+ {[%clk 0:00:17.9]} 55... Ka1
{[%clk 0:00:28.4]} 56. Qe5+ {[%clk 0:00:16.3]} 56... Kb1 {[%clk 0:00:28.2]} 57.
Qe1+ {[%clk 0:00:16.2]} 57... Kb2 {[%clk 0:00:27.9]} 58. Qc1+ {[%clk 0:00:15.8]}
58... Kb3 {[%clk 0:00:27.9]} 59. Qa1 {[%clk 0:00:14.8]} 1-0

[Event "*** Titled Tuesday Blitz"]
[Site "Chess.com"]
[Date "2020.04.28"]
[Round "5"]
[White "Paladin61"]
[Black "FrogMist"]
[Result "1-0"]
[WhiteElo "2586"]
[BlackElo "2408"]
[TimeControl "180+1"]
[EndTime "10:56:17 PDT"]
[Termination "Paladin61 won by resignation"]

1. d4 {[%clk 0:02:59]} 1... Nf6 {[%clk 0:02:59.9]} 2. c4 {[%clk 0:02:59.3]} 2...
g6 {[%clk 0:02:59.4]} 3. g3 {[%clk 0:02:59.2]} 3... Bg7 {[%clk 0:02:58.9]} 4.
Bg2 {[%clk 0:02:59.1]} 4... O-O {[%clk 0:02:59.3]} 5. Nc3 {[%clk 0:02:59.1]}
5... d6 {[%clk 0:02:56.5]} 6. Nf3 {[%clk 0:02:59.2]} 6... Nc6 {[%clk 0:02:55.6]}
7. O-O {[%clk 0:02:59.2]} 7... a6 {[%clk 0:02:54.9]} 8. Qd3 {[%clk 0:02:57.9]}
8... e6 {[%clk 0:02:45.8]} 9. e4 {[%clk 0:02:53]} 9... h6 {[%clk 0:02:43.6]} 10.
h3 {[%clk 0:02:45.9]} 10... Bd7 {[%clk 0:02:36.3]} 11. Be3 {[%clk 0:02:42.8]}
11... Rb8 {[%clk 0:02:18.9]} 12. a3 {[%clk 0:02:37.4]} 12... b5 {[%clk
0:01:11.4]} 13. cxb5 {[%clk 0:02:36.6]} 13... axb5 {[%clk 0:01:12.3]} 14. b4
{[%clk 0:02:35.5]} 14... Kh7 {[%clk 0:00:44.7]} 15. Rac1 {[%clk 0:02:20.4]}
15... Qc8 {[%clk 0:00:40.6]} 16. Kh2 {[%clk 0:02:13.6]} 16... Qa6 {[%clk
0:00:40.5]} 17. d5 {[%clk 0:01:57.7]} 17... Ne7 {[%clk 0:00:30.9]} 18. a4 {[%clk
0:01:40.1]} 18... exd5 {[%clk 0:00:28.4]} 19. exd5 {[%clk 0:01:32]} 19... Qb7
{[%clk 0:00:20.5]} 20. Nxb5 {[%clk 0:01:22.9]} 20... Bxb5 {[%clk 0:00:19.6]} 21.
axb5 {[%clk 0:01:21.4]} 21... Nexd5 {[%clk 0:00:19.9]} 22. Nd4 {[%clk
0:01:19.6]} 22... Rfe8 {[%clk 0:00:14.5]} 23. Bd2 {[%clk 0:01:03]} 23... Qb6
{[%clk 0:00:12.2]} 24. Rc6 {[%clk 0:00:34.3]} 24... Qb7 {[%clk 0:00:11.1]} 25.
Rfc1 {[%clk 0:00:31.7]} 25... Re7 {[%clk 0:00:10.6]} 26. Kg1 {[%clk 0:00:25.6]}
26... Rbe8 {[%clk 0:00:10.6]} 27. Qb3 {[%clk 0:00:23.2]} 27... Nb6 {[%clk
0:00:06.7]} 28. Rxd6 {[%clk 0:00:18.6]} 28... Qb8 {[%clk 0:00:06.4]} 29. Nc6
{[%clk 0:00:16.5]} 29... cxd6 {[%clk 0:00:06.1]} 30. Nxb8 {[%clk 0:00:16.4]}
30... Rxb8 {[%clk 0:00:07]} 31. Bf4 {[%clk 0:00:15.8]} 31... Rd8 {[%clk
0:00:06.4]} 32. Rc6 {[%clk 0:00:15.1]} 32... Nc8 {[%clk 0:00:05.8]} 33. b6
{[%clk 0:00:15.3]} 33... g5 {[%clk 0:00:04.7]} 34. Be3 {[%clk 0:00:10.5]} 34...
Rb7 {[%clk 0:00:04.5]} 35. Rxc8 {[%clk 0:00:10.3]} 35... Rxc8 {[%clk 0:00:04.5]}
36. Bxb7 {[%clk 0:00:10.5]} 36... Rb8 {[%clk 0:00:04.2]} 37. Bf3 {[%clk
0:00:09.5]} 37... d5 {[%clk 0:00:05.1]} 38. Qd3+ {[%clk 0:00:09.3]} 38... Kg8
{[%clk 0:00:04.2]} 39. Bxd5 {[%clk 0:00:08.6]} 39... Nxd5 {[%clk 0:00:05.1]} 40.
Qxd5 {[%clk 0:00:08]} 40... Bf8 {[%clk 0:00:06]} 41. b5 {[%clk 0:00:07.6]} 1-0

[Event "*** Titled Tuesday Blitz"]
[Site "Chess.com"]
[Date "2020.04.28"]
[Round "5"]
[White "JoakimVonAnd"]
[Black "ChessQueen"]
[Result "0-1"]
[WhiteElo "2519"]
[BlackElo "2734"]
[TimeControl "180+1"]
[EndTime "10:56:18 PDT"]
[Termination "ChessQueen won by resignation"]

1. d4 {[%clk 0:03:00.9]} 1... Nf6 {[%clk 0:02:59.6]} 2. c4 {[%clk 0:03:00.6]}
2... e6 {[%clk 0:02:59.6]} 3. Nc3 {[%clk 0:03:00.7]} 3... Bb4 {[%clk 0:02:59.4]}
4. e3 {[%clk 0:03:00.8]} 4... b6 {[%clk 0:02:58.8]} 5. Ne2 {[%clk 0:02:58.1]}
5... Bb7 {[%clk 0:02:57.3]} 6. a3 {[%clk 0:02:58.1]} 6... Be7 {[%clk 0:02:56.6]}
7. Ng3 {[%clk 0:02:40.5]} 7... d6 {[%clk 0:02:55.5]} 8. e4 {[%clk 0:02:39.7]}
8... Nbd7 {[%clk 0:02:55.8]} 9. Bd3 {[%clk 0:02:38.1]} 9... e5 {[%clk
0:02:54.3]} 10. d5 {[%clk 0:02:36.7]} 10... a5 {[%clk 0:02:52]} 11. Nf5 {[%clk
0:02:18.7]} 11... Bf8 {[%clk 0:02:42.4]} 12. g4 {[%clk 0:02:14.4]} 12... g6
{[%clk 0:02:38.1]} 13. Ng3 {[%clk 0:02:14.3]} 13... Nc5 {[%clk 0:02:31.1]} 14.
Bc2 {[%clk 0:02:09]} 14... h5 {[%clk 0:02:21]} 15. g5 {[%clk 0:02:08.9]} 15...
h4 {[%clk 0:02:20.1]} 16. Nge2 {[%clk 0:01:54.1]} 16... Nh5 {[%clk 0:02:16.1]}
17. Be3 {[%clk 0:01:53.7]} 17... Be7 {[%clk 0:02:12.6]} 18. Qd2 {[%clk
0:01:52.1]} 18... Ba6 {[%clk 0:02:07.4]} 19. Nb5 {[%clk 0:01:38.6]} 19... O-O
{[%clk 0:01:52.3]} 20. O-O-O {[%clk 0:01:25]} 20... Qd7 {[%clk 0:01:45.8]} 21.
a4 {[%clk 0:01:19.5]} 21... Bxb5 {[%clk 0:01:35.5]} 22. cxb5 {[%clk 0:01:18.7]}
22... Qg4 {[%clk 0:01:30.7]} 23. Bxc5 {[%clk 0:01:05.5]} 23... dxc5 {[%clk
0:01:29.4]} 24. Rdg1 {[%clk 0:01:04.7]} 24... Qf3 {[%clk 0:01:20.8]} 25. Qe3
{[%clk 0:01:04.6]} 25... Qxe3+ {[%clk 0:01:19.7]} 26. fxe3 {[%clk 0:01:05.5]}
26... Kh7 {[%clk 0:01:09.4]} 27. Bd1 {[%clk 0:01:05.3]} 27... f6 {[%clk
0:01:08.9]} 28. gxf6 {[%clk 0:00:58.3]} 28... Nxf6 {[%clk 0:01:02.5]} 29. Nc3
{[%clk 0:00:57.6]} 29... Rf7 {[%clk 0:00:58.2]} 30. Rg2 {[%clk 0:00:55.3]} 30...
Rg8 {[%clk 0:00:56.8]} 31. Rhg1 {[%clk 0:00:55.1]} 31... Rfg7 {[%clk 0:00:54.1]}
32. h3 {[%clk 0:00:46.1]} 32... g5 {[%clk 0:00:51.2]} 33. d6 {[%clk 0:00:39.2]}
33... cxd6 {[%clk 0:00:46.8]} 34. Bb3 {[%clk 0:00:38.4]} 34... Rf8 {[%clk
0:00:43.6]} 35. Rxg5 {[%clk 0:00:37.7]} 35... Rxg5 {[%clk 0:00:42.8]} 36. Rxg5
{[%clk 0:00:38.6]} 36... Nxe4 {[%clk 0:00:27.4]} 37. Nxe4 {[%clk 0:00:35.6]}
37... Bxg5 {[%clk 0:00:28]} 38. Nxg5+ {[%clk 0:00:35.4]} 38... Kg6 {[%clk
0:00:28.6]} 39. Ne4 {[%clk 0:00:31.8]} 39... Rf3 {[%clk 0:00:28.4]} 40. Be6
{[%clk 0:00:28.9]} 40... Rxe3 {[%clk 0:00:27.3]} 41. Nxd6 {[%clk 0:00:29]} 41...
Re1+ {[%clk 0:00:25.1]} 42. Kd2 {[%clk 0:00:28.4]} 42... Rh1 {[%clk 0:00:24.5]}
43. Nc4 {[%clk 0:00:27]} 43... Kf6 {[%clk 0:00:24.4]} 44. Bc8 {[%clk 0:00:27.1]}
44... e4 {[%clk 0:00:23.8]} 45. Nxb6 {[%clk 0:00:26.6]} 45... Ke5 {[%clk
0:00:24.1]} 46. Nc4+ {[%clk 0:00:25]} 46... Kd4 {[%clk 0:00:24.5]} 47. b6 {[%clk
0:00:25.5]} 47... Rh2+ {[%clk 0:00:22.9]} 48. Ke1 {[%clk 0:00:25.4]} 48... Kxc4
{[%clk 0:00:22.6]} 49. b7 {[%clk 0:00:25.2]} 49... Rxb2 {[%clk 0:00:20]} 50. Kd1
{[%clk 0:00:16.8]} 50... Kd4 {[%clk 0:00:18.3]} 51. Ke1 {[%clk 0:00:14.9]} 51...
Ke3 {[%clk 0:00:17.2]} 52. Kd1 {[%clk 0:00:14.6]} 52... Kf2 {[%clk 0:00:16.6]}
53. Bd7 {[%clk 0:00:14.5]} 53... Rxb7 {[%clk 0:00:15.6]} 0-1

[Event "*** Titled Tuesday Blitz"]
[Site "Chess.com"]
[Date "2020.04.28"]
[Round "5"]
[White "mortngabriel"]
[Black "hamelekh"]
[Result "1-0"]
[WhiteElo "2480"]
[BlackElo "2679"]
[TimeControl "180+1"]
[EndTime "10:56:18 PDT"]
[Termination "mortngabriel won by resignation"]

1. d4 {[%clk 0:03:00.9]} 1... Nf6 {[%clk 0:02:59.6]} 2. c4 {[%clk 0:02:59.9]}
2... e6 {[%clk 0:02:58.9]} 3. Nf3 {[%clk 0:03:00.2]} 3... d5 {[%clk 0:02:57.9]}
4. Nc3 {[%clk 0:02:59.6]} 4... dxc4 {[%clk 0:02:57.5]} 5. e3 {[%clk 0:02:55.1]}
5... a6 {[%clk 0:02:55.2]} 6. a4 {[%clk 0:02:50.5]} 6... c5 {[%clk 0:02:50.3]}
7. Bxc4 {[%clk 0:02:49.8]} 7... Nc6 {[%clk 0:02:48.2]} 8. O-O {[%clk 0:02:41.8]}
8... Be7 {[%clk 0:02:42.3]} 9. Qe2 {[%clk 0:02:24.7]} 9... cxd4 {[%clk
0:02:40.2]} 10. Rd1 {[%clk 0:02:24.3]} 10... O-O {[%clk 0:02:39.8]} 11. exd4
{[%clk 0:02:10.8]} 11... Nb4 {[%clk 0:02:39.2]} 12. Bg5 {[%clk 0:02:03]} 12...
Bd7 {[%clk 0:02:21.7]} 13. Ne5 {[%clk 0:02:01.6]} 13... Re8 {[%clk 0:02:18]} 14.
Qf3 {[%clk 0:01:13.2]} 14... Bc6 {[%clk 0:02:11.7]} 15. Nxc6 {[%clk 0:01:11.7]}
15... bxc6 {[%clk 0:02:11.8]} 16. Rac1 {[%clk 0:00:57.1]} 16... a5 {[%clk
0:02:11]} 17. Ne4 {[%clk 0:00:45.8]} 17... Nxe4 {[%clk 0:02:07.2]} 18. Bxe7
{[%clk 0:00:46.7]} 18... Qxe7 {[%clk 0:02:06.7]} 19. Qxe4 {[%clk 0:00:46.7]}
19... Rab8 {[%clk 0:02:05.4]} 20. b3 {[%clk 0:00:35.5]} 20... Qa7 {[%clk
0:01:43.6]} 21. Rd2 {[%clk 0:00:32.4]} 21... Rbd8 {[%clk 0:01:40.5]} 22. Rcd1
{[%clk 0:00:32.2]} 22... g6 {[%clk 0:01:39.2]} 23. h4 {[%clk 0:00:30.7]} 23...
Qe7 {[%clk 0:01:38]} 24. g3 {[%clk 0:00:27.3]} 24... Nd5 {[%clk 0:01:34.7]} 25.
Qe5 {[%clk 0:00:20.4]} 25... Qd6 {[%clk 0:01:28.6]} 26. Kg2 {[%clk 0:00:17.2]}
26... Rd7 {[%clk 0:01:26]} 27. h5 {[%clk 0:00:15.8]} 27... Red8 {[%clk
0:01:24.9]} 28. Qg5 {[%clk 0:00:15]} 28... Qe7 {[%clk 0:01:22.6]} 29. Qh6 {[%clk
0:00:09.1]} 29... Qf8 {[%clk 0:01:22.3]} 30. Qg5 {[%clk 0:00:09.1]} 30... h6
{[%clk 0:01:21.8]} 31. Qg4 {[%clk 0:00:09]} 31... g5 {[%clk 0:01:19.7]} 32. Bd3
{[%clk 0:00:05.3]} 32... Qg7 {[%clk 0:01:13.8]} 33. Bc4 {[%clk 0:00:04.3]} 33...
Nc3 {[%clk 0:01:05.5]} 34. Rc1 {[%clk 0:00:04.2]} 34... Rxd4 {[%clk 0:01:02.3]}
35. Rxd4 {[%clk 0:00:04.1]} 35... Rxd4 {[%clk 0:01:03.2]} 36. Qf3 {[%clk
0:00:04.1]} 36... Nd5 {[%clk 0:01:03.5]} 37. Bxd5 {[%clk 0:00:03.7]} 37... cxd5
{[%clk 0:01:03.5]} 38. Rc8+ {[%clk 0:00:02.5]} 38... Kh7 {[%clk 0:01:03.9]} 39.
Rc7 {[%clk 0:00:02.9]} 39... Kg8 {[%clk 0:00:56.5]} 40. Rc8+ {[%clk 0:00:02.4]}
40... Kh7 {[%clk 0:00:56.8]} 41. Rc7 {[%clk 0:00:03.3]} 41... g4 {[%clk
0:00:56.9]} 42. Qxf7 {[%clk 0:00:03.4]} 42... Qxf7 {[%clk 0:00:56.7]} 43. Rxf7+
{[%clk 0:00:04.3]} 43... Kg8 {[%clk 0:00:56.7]} 44. Re7 {[%clk 0:00:05.2]} 44...
Re4 {[%clk 0:00:55.8]} 45. Ra7 {[%clk 0:00:06.1]} 45... Rb4 {[%clk 0:00:54.9]}
46. Rxa5 {[%clk 0:00:04.8]} 46... Rxb3 {[%clk 0:00:54.7]} 47. Ra7 {[%clk
0:00:05]} 47... Kf8 {[%clk 0:00:51.2]} 48. Rh7 {[%clk 0:00:04.4]} 48... d4
{[%clk 0:00:51.5]} 49. Rxh6 {[%clk 0:00:03.6]} 49... Kf7 {[%clk 0:00:51.9]} 50.
Rh7+ {[%clk 0:00:03.7]} 50... Kf6 {[%clk 0:00:51.7]} 51. Rd7 {[%clk 0:00:03.6]}
51... e5 {[%clk 0:00:52.1]} 52. h6 {[%clk 0:00:03.9]} 52... Rb8 {[%clk
0:00:51.4]} 53. h7 {[%clk 0:00:04.1]} 53... Rh8 {[%clk 0:00:48.3]} 54. Kf1
{[%clk 0:00:03.7]} 54... Ke6 {[%clk 0:00:48.5]} 55. Rb7 {[%clk 0:00:03.7]} 55...
e4 {[%clk 0:00:48.4]} 56. a5 {[%clk 0:00:03.7]} 56... Rc8 {[%clk 0:00:45.1]} 57.
a6 {[%clk 0:00:02.2]} 57... d3 {[%clk 0:00:44.2]} 58. Ke1 {[%clk 0:00:02.6]}
58... Rc1+ {[%clk 0:00:43.6]} 59. Kd2 {[%clk 0:00:03.5]} 59... Rc2+ {[%clk
0:00:44]} 60. Kd1 {[%clk 0:00:03.6]} 60... Rc8 {[%clk 0:00:42.4]} 61. a7 {[%clk
0:00:04]} 61... e3 {[%clk 0:00:43]} 62. fxe3 {[%clk 0:00:03.9]} 1-0

[Event "*** Titled Tuesday Blitz"]
[Site "Chess.com"]
[Date "2020.04.28"]
[Round "5"]
[White "ZAbdumalik"]
[Black "JozefKneht"]
[Result "0-1"]
[WhiteElo "2623"]
[BlackElo "2438"]
[TimeControl "180+1"]
[EndTime "10:56:18 PDT"]
[Termination "JozefKneht won by checkmate"]

1. e4 {[%clk 0:03:00.9]} 1... e5 {[%clk 0:02:58.1]} 2. Nf3 {[%clk 0:03:00.8]}
2... Nc6 {[%clk 0:02:57.3]} 3. Bb5 {[%clk 0:03:01.1]} 3... a6 {[%clk 0:02:56.7]}
4. Ba4 {[%clk 0:03:01.5]} 4... Nf6 {[%clk 0:02:56.9]} 5. O-O {[%clk 0:03:01.8]}
5... Be7 {[%clk 0:02:57.3]} 6. Re1 {[%clk 0:03:01.3]} 6... b5 {[%clk 0:02:57.5]}
7. Bb3 {[%clk 0:03:01.9]} 7... d6 {[%clk 0:02:57.9]} 8. c3 {[%clk 0:03:02.1]}
8... O-O {[%clk 0:02:58.1]} 9. h3 {[%clk 0:03:02.8]} 9... Na5 {[%clk 0:02:58.6]}
10. Bc2 {[%clk 0:03:03]} 10... c5 {[%clk 0:02:59.5]} 11. d4 {[%clk 0:03:03.6]}
11... Nd7 {[%clk 0:03:00]} 12. Nbd2 {[%clk 0:03:03.2]} 12... cxd4 {[%clk
0:02:59.3]} 13. cxd4 {[%clk 0:03:03]} 13... Nc6 {[%clk 0:02:59.8]} 14. Nf1
{[%clk 0:02:59.3]} 14... exd4 {[%clk 0:02:57.9]} 15. Nxd4 {[%clk 0:02:59.4]}
15... Nxd4 {[%clk 0:02:57.8]} 16. Qxd4 {[%clk 0:02:59.5]} 16... Ne5 {[%clk
0:02:58]} 17. Qd1 {[%clk 0:02:49.3]} 17... Bf6 {[%clk 0:02:52.6]} 18. Ne3 {[%clk
0:02:48.1]} 18... Be6 {[%clk 0:02:51.5]} 19. Nd5 {[%clk 0:02:44.8]} 19... Bxd5
{[%clk 0:02:50.2]} 20. Qxd5 {[%clk 0:02:41.1]} 20... Rc8 {[%clk 0:02:50.5]} 21.
Bb3 {[%clk 0:02:40.5]} 21... Rc5 {[%clk 0:02:49.4]} 22. Qd1 {[%clk 0:02:36.6]}
22... Nc4 {[%clk 0:02:49]} 23. Qe2 {[%clk 0:02:32.7]} 23... d5 {[%clk
0:02:46.1]} 24. exd5 {[%clk 0:02:22.7]} 24... Qxd5 {[%clk 0:02:43]} 25. a4
{[%clk 0:02:21.6]} 25... Qc6 {[%clk 0:02:24.4]} 26. axb5 {[%clk 0:02:18.1]}
26... axb5 {[%clk 0:02:24.9]} 27. Bc2 {[%clk 0:02:04.8]} 27... Re5 {[%clk
0:02:17]} 28. Be4 {[%clk 0:02:01]} 28... Qc5 {[%clk 0:01:52.6]} 29. Qc2 {[%clk
0:01:59.1]} 29... g6 {[%clk 0:01:47.9]} 30. Ra6 {[%clk 0:01:47.5]} 30... Bg7
{[%clk 0:01:44.9]} 31. b3 {[%clk 0:01:45.2]} 31... Qc8 {[%clk 0:01:35.5]} 32.
Qa2 {[%clk 0:01:23.2]} 32... Qe8 {[%clk 0:00:57.3]} 33. f3 {[%clk 0:01:07.8]}
33... f5 {[%clk 0:00:49.6]} 34. bxc4 {[%clk 0:00:47.8]} 34... fxe4 {[%clk
0:00:49]} 35. cxb5+ {[%clk 0:00:47.8]} 35... Kh8 {[%clk 0:00:49.5]} 36. Ba3
{[%clk 0:00:23.7]} 36... exf3 {[%clk 0:00:33.3]} 37. Rxe5 {[%clk 0:00:22.6]}
37... Bxe5 {[%clk 0:00:29.2]} 38. Bxf8 {[%clk 0:00:19.8]} 38... Bd4+ {[%clk
0:00:29.1]} 39. Kh2 {[%clk 0:00:15.4]} 39... f2 {[%clk 0:00:21.1]} 40. Bg7+
{[%clk 0:00:12.8]} 40... Kxg7 {[%clk 0:00:20.1]} 41. Qc4 {[%clk 0:00:12.1]}
41... Qe5+ {[%clk 0:00:19]} 42. g3 {[%clk 0:00:12.4]} 42... Qe3 {[%clk 0:00:12]}
43. Re6 {[%clk 0:00:11.2]} 43... f1=Q {[%clk 0:00:06.7]} 44. Qc7+ {[%clk
0:00:05.4]} 44... Kh6 {[%clk 0:00:05.7]} 45. Rxe3 {[%clk 0:00:06.3]} 45... Bxe3
{[%clk 0:00:05]} 46. Qc2 {[%clk 0:00:07]} 46... Qg1# {[%clk 0:00:04.1]} 0-1